lending/lending_fUSD_20240206
["ID","MTS","AMOUNT","RATE_DAILY","PERIOD"]
[313375537,1707240660752,-191.56467231,0.00050798,4]
[313375538,1707240660761,-1054.0465193,0.00050798,4]
[313375539,1707240660770,-150.0,0.00050799,10]
[313375540,1707240660779,-150.0,0.00050799,10]
[313375541,1707240660789,-500.0,0.000508,2]
[313375542,1707240660798,-500.0,0.000508,2]
[313375543,1707240660809,-500.0,0.000508,2]
[313375544,1707240660821,-500.0,0.000508,2]
[313375545,1707240660830,-500.0,0.000508,2]
[313375546,1707240660840,-500.0,0.000508,2]
[313375547,1707240660849,-329637.27403797,0.000508,120]
[313375548,1707240660862,-11863.18877905,0.000508,120]
[313375549,1707240660873,-1491.09837849,0.000508,120]
[313375550,1707240660885,-16431.9742814,0.000508,120]
[313375551,1707240660898,-4552.98244124,0.000508,120]
[313375552,1707240660911,-2162.1,0.000508,120]
[313375553,1707240660966,-106963.0158201,0.000508,120]
[313375554,1707240660978,-1835.09460618,0.000508,120]
[313375555,1707240660991,-10711.20257863,0.000508,120]
[313375556,1707240661209,-368.0,0.00035825,5]
[313375557,1707240661219,-105.22390086,0.00050067,30]
[313375558,1707240661231,-958.77609914,0.00050067,30]
[313375559,1707240661241,-729.47433955,0.000508,120]
[313375560,1707240661253,-1213.4634282,0.000508,120]
[313375561,1707240661277,-604.8212046,0.000508,120]
[313375562,1707240661293,-2943.35717574,0.000508,120]
[313375563,1707240661304,-5975.60249788,0.000508,120]
[313375564,1707240661322,-505.86101804,0.00050583,30]
[313375565,1707240661334,-354.25431962,0.00050583,30]
[313375566,1707240661349,-150.0,0.00049315,30]
[313375567,1707240661358,-203.88466234,0.00050583,30]
[313375568,1707240661367,-1823.63739355,0.000508,120]
[313375569,1707240661396,-1061.71303742,0.000508,120]
[313375570,1707240661405,-500000.0,0.000508,120]
[313375571,1707240661414,-151.0,0.000508,14]
[313375572,1707240661423,-176.386638,0.000508,14]
[313375573,1707240661432,-354.624913,0.000508,14]
[313375574,1707240661442,-354.624913,0.000508,14]
[313375575,1707240661453,-151.0,0.000508,14]
[313375576,1707240661462,-151.0,0.000508,14]
[313375577,1707240661471,-151.0,0.000508,14]
[313375578,1707240661480,-154.23080742,0.00050858,60]
[313375579,1707240661490,-525.1526049,0.00050865,2]
[313375580,1707240661500,-202.0741237,0.00050865,2]
[313375581,1707240661509,-196.09038879,0.00050899,10]
[313375582,1707240661518,-150.0,0.00050899,10]
[313375583,1707240661527,-500000.0,0.000509,120]
[313375584,1707240661536,-500000.0,0.000509,120]
[313375585,1707240661545,-150.0,0.000509,40]
[313375586,1707240661554,-151.0,0.000509,14]
[313375587,1707240661563,-151.0,0.000509,14]
[313375588,1707240661572,-172.087196,0.000509,14]
[313375589,1707240661582,-151.0,0.000509,14]
[313375590,1707240661591,-151.0,0.000509,14]
[313375591,1707240661600,-400.0,0.000509,18]
[313375592,1707240661609,-1000.0,0.000509,30]
[313375593,1707240661619,-303.0,0.000509,2]
[313375594,1707240661629,-154.23080742,0.00050901,60]
[313375595,1707240661638,-490.88437239,0.00050958,30]
[313375596,1707240661648,-500.0,0.00050958,120]
[313375597,1707240661657,-500.0,0.00050958,31]
[313375598,1707240661666,-500.0,0.00050958,31]
[313375599,1707240661675,-500.0,0.00050958,31]
[313375600,1707240661684,-500.0,0.00050958,7]
[313375601,1707240661693,-500.0,0.00050958,31]
[313375602,1707240661705,-500.0,0.00050958,31]
[313375603,1707240661714,-500.0,0.00050958,31]
[313375604,1707240661723,-500.0,0.00050958,31]
[313375605,1707240661732,-500.0,0.00050958,31]
[313375606,1707240661741,-500.0,0.00050958,31]
[313375607,1707240661751,-500.0,0.00050958,2]
[313375608,1707240661760,-500.0,0.00050958,31]
[313375609,1707240661770,-581.69730429,0.00050958,31]
[313375610,1707240661780,-500.0,0.00050958,31]
[313375611,1707240661789,-500.0,0.00050958,2]
[313375612,1707240661799,-500.0,0.00050958,31]
[313375613,1707240661809,-593.49,0.00050958,7]
[313375614,1707240661821,-500.0,0.00050958,31]
[313375615,1707240661832,-555.94951665,0.00050958,31]
[313375616,1707240661841,-523.35401662,0.00050958,31]
[313375617,1707240661851,-500.0,0.00050958,31]
[313375618,1707240661860,-500.0,0.00050958,31]
[313375619,1707240661869,-500.0,0.00050958,31]
[313375620,1707240661878,-359.63521351,0.00050958,31]
[313375621,1707240661888,-500.0,0.00050958,31]
[313375622,1707240661897,-500.0,0.00050958,31]
[313375623,1707240661906,-500.0,0.00050958,31]
[313375624,1707240661915,-1000.0,0.00050958,7]
[313375625,1707240661924,-1142.62,0.00050958,31]
[313375626,1707240661933,-500.0,0.00050958,31]
[313375627,1707240661943,-500.0,0.00050958,31]
[313375628,1707240661953,-548.45,0.00050958,31]
[313375629,1707240661961,-760.52,0.00050958,31]
[313375630,1707240661971,-500.0,0.00050958,31]
[313375631,1707240661981,-500.0,0.00050958,10]
[313375632,1707240661990,-850.64,0.00050958,31]
[313375633,1707240661999,-500.0,0.00050958,31]
[313375634,1707240662009,-500.0,0.00050958,31]
[313375635,1707240662019,-600.0,0.00050958,31]
[313375636,1707240662028,-500.0,0.00050958,31]
[313375637,1707240662037,-590.94,0.00050958,31]
[313375638,1707240662047,-500.0,0.00050958,31]
[313375639,1707240662056,-601.07190436,0.00050958,31]
[313375640,1707240662065,-500.0,0.00050958,31]
[313375641,1707240662074,-500.0,0.00050958,31]
[313375642,1707240662083,-607.0232801,0.00050958,31]
[313375643,1707240662093,-500.0,0.00050958,31]
[313375644,1707240662102,-759.47,0.00050958,7]
[313375645,1707240662111,-500.0,0.00050958,31]
[313375646,1707240662120,-500.0,0.00050958,31]
[313375647,1707240662129,-2245.18,0.00050958,31]
[313375648,1707240662138,-500.0,0.00050958,31]
[313375649,1707240662149,-500.0,0.00050958,7]
[313375650,1707240662158,-500.0,0.00050958,31]
[313375651,1707240662167,-1000.0,0.00050958,7]
[313375652,1707240662176,-212.57094571,0.00050958,31]
[313375653,1707240662185,-500.0,0.00050958,31]
[313375654,1707240662195,-500.0,0.00050958,31]
[313375655,1707240662205,-500.0,0.00050958,31]
[313375656,1707240662288,-500.0,0.00050958,31]
[313375657,1707240662299,-500.0,0.00050958,31]
[313375658,1707240662308,-500.0,0.00050958,31]
[313375659,1707240662318,-646.03,0.00050958,31]
[313375660,1707240662327,-500.0,0.00050958,31]
[313375661,1707240662336,-596.78037492,0.00050958,31]
[313375662,1707240662345,-500.0,0.00050958,31]
[313375663,1707240662355,-500.0,0.00050958,31]
[313375664,1707240662365,-500.0,0.00050958,31]
[313375665,1707240662374,-500.0,0.00050958,31]
[313375666,1707240662384,-969.13,0.00050958,31]
[313375667,1707240662393,-979.31,0.00050958,31]
[313375668,1707240662402,-500.0,0.00050958,31]
[313375669,1707240662411,-500.0,0.00050958,31]
[313375670,1707240662421,-500.0,0.00050958,31]
[313375671,1707240662430,-500.0,0.00050958,31]
[313375672,1707240662439,-374.51258197,0.00050958,31]
[313375673,1707240662450,-500.0,0.00050958,31]
[313375674,1707240662459,-3069.86,0.00050958,5]
[313375675,1707240662468,-500.0,0.00050958,31]
[313375676,1707240662477,-500.0,0.00050958,31]
[313375677,1707240662487,-500.0,0.00050958,31]
[313375678,1707240662496,-253.40152158,0.00050958,31]
[313375679,1707240662505,-500.0,0.00050958,7]
[313375680,1707240662514,-500.0,0.00050958,31]
[313375681,1707240662523,-183.78136582,0.00050958,31]
[313375682,1707240662533,-500.0,0.00050958,31]
[313375683,1707240662543,-500.0,0.00050958,31]
[313375684,1707240662553,-500.0,0.00050958,31]
[313375685,1707240662562,-500.0,0.00050958,31]
[313375686,1707240662571,-500.0,0.00050958,31]
[313375687,1707240662581,-500.0,0.00050958,31]
[313375688,1707240662590,-500.0,0.00050958,31]
[313375689,1707240662600,-500.0,0.00050958,31]
[313375690,1707240662609,-500.0,0.00050958,31]
[313375691,1707240662619,-500.0,0.00050958,31]
[313375692,1707240662628,-663.08,0.00050958,31]
[313375693,1707240662637,-500.0,0.00050958,31]
[313375694,1707240662646,-500.0,0.00050958,31]
[313375695,1707240662655,-500.0,0.00050958,31]
[313375696,1707240662665,-576.31605502,0.00050958,31]
[313375697,1707240662674,-500.0,0.00050958,31]
[313375698,1707240662684,-500.0,0.00050958,31]
[313375699,1707240662693,-500.0,0.00050958,31]
[313375700,1707240662703,-500.0,0.00050958,31]
[313375701,1707240662713,-1614.21,0.00050958,31]
[313375702,1707240662722,-500.0,0.00050958,31]
[313375703,1707240662732,-500.0,0.00050958,31]
[313375704,1707240662741,-500.0,0.00050958,31]
[313375705,1707240662751,-500.0,0.00050958,31]
[313375706,1707240662761,-500.0,0.00050958,31]
[313375707,1707240662771,-500.0,0.00050958,31]
[313375708,1707240662781,-500.0,0.00050958,31]
[313375709,1707240662790,-500.0,0.00050958,31]
[313375710,1707240662811,-508.33,0.00050958,31]
[313375711,1707240662828,-500.0,0.00050958,31]
[313375712,1707240662848,-500.0,0.00050958,31]
[313375713,1707240662867,-500.0,0.00050958,31]
[313375714,1707240662883,-500.0,0.00050958,31]
[313375715,1707240662903,-535.53,0.00050958,31]
[313375716,1707240662923,-500.0,0.00050958,31]
[313375717,1707240662939,-500.0,0.00050958,31]
[313375718,1707240662959,-500.0,0.00050958,31]
[313375719,1707240662975,-1000.0,0.00050958,7]
[313375720,1707240662995,-1000.0,0.00050958,7]
[313375721,1707240663015,-500.0,0.00050958,31]
[313375722,1707240663029,-500.0,0.00050958,31]
[313375723,1707240663043,-711.2,0.00050958,31]
[313375724,1707240663059,-500.0,0.00050958,31]
[313375725,1707240663073,-500.0,0.00050958,31]
[313375726,1707240663088,-456.36116682,0.00050958,31]
[313375727,1707240663102,-500.0,0.00050958,31]
[313375728,1707240663118,-500.0,0.00050958,31]
[313375729,1707240663131,-500.0,0.00050958,31]
[313375730,1707240663145,-325.77621793,0.00050958,31]
[313375731,1707240663159,-500.0,0.00050958,31]
[313375732,1707240663173,-500.0,0.00050958,31]
[313375733,1707240663186,-1532.12,0.00050958,31]
[313375734,1707240663202,-500.0,0.00050958,31]
[313375735,1707240663217,-500.0,0.00050958,31]
[313375736,1707240663231,-500.0,0.00050958,31]
[313375737,1707240663247,-500.0,0.00050958,31]
[313375738,1707240663263,-500.0,0.00050958,31]
[313375739,1707240663272,-500.0,0.00050958,31]
[313375740,1707240663281,-1329.98,0.00050958,5]
[313375741,1707240663290,-500.0,0.00050958,31]
[313375742,1707240663299,-500.0,0.00050958,31]
[313375743,1707240663309,-500.0,0.00050958,31]
[313375744,1707240663318,-500.0,0.00050958,31]
[313375745,1707240663328,-849.58,0.00050958,31]
[313375746,1707240663337,-500.0,0.00050958,31]
[313375747,1707240663346,-500.0,0.00050958,31]
[313375748,1707240663355,-500.0,0.00050958,31]
[313375749,1707240663364,-500.0,0.00050958,31]
[313375750,1707240663373,-500.0,0.00050958,2]
[313375751,1707240663383,-747.05,0.00050958,30]
[313375752,1707240663393,-625.06,0.00050958,31]
[313375753,1707240663403,-500.0,0.00050958,31]
[313375754,1707240663413,-500.0,0.00050958,31]
[313375755,1707240663422,-500.0,0.00050958,31]
[313375756,1707240663431,-500.0,0.00050958,2]
[313375757,1707240663441,-500.0,0.00050958,31]
[313375758,1707240663454,-611.5905547,0.00050965,2]
[313375759,1707240663463,-211.656116,0.00050965,2]
[313375760,1707240663472,-200.0,0.00050987,73]
[313375761,1707240663481,-200.0,0.00050987,69]
[313375762,1707240663490,-200.0,0.00050987,65]
[313375763,1707240663698,-200.0,0.00050987,61]
[313375764,1707240663717,-200.0,0.00050987,57]
[313375765,1707240663727,-150.0,0.00050999,10]
[313375766,1707240663737,-100000.0,0.00051,41]
[313375767,1707240663746,-500000.0,0.00051,120]
[313375768,1707240663755,-199.0,0.00051,30]
[313375769,1707240663765,-1608.59013256,0.00051,30]
[313375770,1707240663774,-3814.0,0.00051,30]
[313375771,1707240663783,-372905.10364512,0.00051,15]
[313375772,1707240663798,-958.76890871,0.00051,15]
[313375773,1707240663827,-1645.03245509,0.00051,15]
[313375774,1707240663836,-20203.89285724,0.00051,30]
[313375775,1707240663846,-225025.2268972,0.00051,120]
[313375776,1707240663858,-7190.72063001,0.00051,120]
[313375777,1707240663876,-2295.6112263,0.00051,120]
[313375778,1707240663888,-495.44200308,0.00051,120]
[313375779,1707240663902,-264992.99924341,0.00051,120]
[313375780,1707240663911,-200000.0,0.00051,30]
[313375781,1707240663920,-200.0,0.00051,29]
[313375782,1707240663930,-1000.0,0.00051,2]
[313375783,1707240663939,-1000.0,0.00051,3]
[313375784,1707240663950,-151.0,0.00051,14]
[313375785,1707240663960,-354.624913,0.00051,14]
[313375786,1707240663969,-354.624913,0.00051,14]
[313375787,1707240663978,-151.0,0.00051,14]
[313375788,1707240663988,-151.0,0.00051,14]
[313375789,1707240663997,-151.0,0.00051,14]
[313375790,1707240664007,-9221.86633626,0.00051,2]
[313375791,1707240664016,-728.0,0.00051,60]
[313375792,1707240664025,-1000.0,0.00051,120]
[313375793,1707240664034,-300.0,0.00051,29]
[313375794,1707240664044,-153.604113,0.00051,29]
[313375795,1707240664053,-8142.0,0.00051014,120]
[313375796,1707240664062,-154.23080742,0.00051035,60]
[313375797,1707240664071,-2110.0,0.00051054,30]
[313375798,1707240664080,-1133.48789608,0.00051062,120]
[313375799,1707240664089,-1064.0,0.00051099,30]
[313375800,1707240664098,-167.01321768,0.0005111,60]
[313375801,1707240664107,-151.0,0.00051166,2]
[313375802,1707240664116,-250.49088,0.00051166,2]
[313375803,1707240664126,-195.74902175,0.00051189,60]
[313375804,1707240664134,-3147.02471771,0.000512,120]
[313375805,1707240664144,-152.57047348,0.00051232,2]
[313375806,1707240664153,-200.0,0.00051251,30]
[313375807,1707240664162,-1000.0,0.00051285,60]
[313375808,1707240664171,-915.2,0.00051308,120]
[313375809,1707240664180,-150.0,0.00051368,11]
[313375810,1707240664190,-450.0,0.00051369,120]
[313375811,1707240664201,-500.0,0.00051369,31]
[313375812,1707240664210,-500.0,0.00051369,31]
[313375813,1707240664219,-500.0,0.00051369,31]
[313375814,1707240664228,-500.0,0.00051369,7]
[313375815,1707240664237,-500.0,0.00051369,31]
[313375816,1707240664246,-295.39691075,0.00051369,31]
[313375817,1707240664255,-500.0,0.00051369,2]
[313375818,1707240664264,-500.0,0.00051369,31]
[313375819,1707240664273,-324.5881092,0.00051369,31]
[313375820,1707240664283,-593.49,0.00051369,7]
[313375821,1707240664292,-500.0,0.00051369,31]
[313375822,1707240664301,-500.0,0.00051369,31]
[313375823,1707240664310,-284.73340716,0.00051369,31]
[313375824,1707240664319,-500.0,0.00051369,31]
[313375825,1707240664328,-640.16677693,0.00051369,31]
[313375826,1707240664337,-500.0,0.00051369,31]
[313375827,1707240664346,-500.0,0.00051369,31]
[313375828,1707240664354,-652.55013597,0.00051369,7]
[313375829,1707240664363,-1142.62,0.00051369,31]
[313375830,1707240664372,-500.0,0.00051369,31]
[313375831,1707240664381,-500.0,0.00051369,31]
[313375832,1707240664391,-548.45,0.00051369,31]
[313375833,1707240664400,-760.52,0.00051369,31]
[313375834,1707240664409,-500.0,0.00051369,31]
[313375835,1707240664418,-500.0,0.00051369,10]
[313375836,1707240664427,-850.64,0.00051369,31]
[313375837,1707240664437,-500.0,0.00051369,31]
[313375838,1707240664447,-500.0,0.00051369,31]
[313375839,1707240664457,-344.55599394,0.00051369,31]
[313375840,1707240664466,-212.12100077,0.00051369,31]
[313375841,1707240664476,-590.94,0.00051369,31]
[313375842,1707240664485,-500.0,0.00051369,31]
[313375843,1707240664495,-500.0,0.00051369,31]
[313375844,1707240664505,-759.47,0.00051369,7]
[313375845,1707240664514,-500.0,0.00051369,31]
[313375846,1707240664523,-500.0,0.00051369,31]
[313375847,1707240664534,-2245.18,0.00051369,31]
[313375848,1707240664543,-500.0,0.00051369,31]
[313375849,1707240664553,-500.0,0.00051369,7]
[313375850,1707240664562,-150.31632475,0.00051369,31]
[313375851,1707240664571,-1000.0,0.00051369,7]
[313375852,1707240664580,-500.0,0.00051369,31]
[313375853,1707240664590,-500.0,0.00051369,31]
[313375854,1707240664599,-500.0,0.00051369,31]
[313375855,1707240664609,-500.0,0.00051369,31]
[313375856,1707240664618,-500.0,0.00051369,31]
[313375857,1707240664628,-646.03,0.00051369,31]
[313375858,1707240664638,-500.0,0.00051369,31]
[313375859,1707240664647,-500.0,0.00051369,31]
[313375860,1707240664657,-500.0,0.00051369,31]
[313375861,1707240664667,-500.0,0.00051369,31]
[313375862,1707240664677,-969.13,0.00051369,31]
[313375863,1707240664686,-979.31,0.00051369,31]
[313375864,1707240664697,-500.0,0.00051369,31]
[313375865,1707240664707,-500.0,0.00051369,31]
[313375866,1707240664717,-500.0,0.00051369,31]
[313375867,1707240664727,-500.0,0.00051369,31]
[313375868,1707240664737,-500.0,0.00051369,31]
[313375869,1707240664747,-3069.86,0.00051369,5]
[313375870,1707240664757,-500.0,0.00051369,31]
[313375871,1707240664767,-452.47207645,0.00051369,7]
[313375872,1707240664777,-500.0,0.00051369,31]
[313375873,1707240664787,-500.0,0.00051369,31]
[313375874,1707240664796,-500.0,0.00051369,31]
[313375875,1707240664806,-500.0,0.00051369,31]
[313375876,1707240664819,-312.79654937,0.00051369,31]
[313375877,1707240664828,-500.0,0.00051369,31]
[313375878,1707240664838,-568.99494767,0.00051369,31]
[313375879,1707240664848,-500.0,0.00051369,31]
[313375880,1707240664858,-500.0,0.00051369,31]
[313375881,1707240664867,-500.0,0.00051369,31]
[313375882,1707240664877,-663.08,0.00051369,31]
[313375883,1707240664889,-500.0,0.00051369,31]
[313375884,1707240664898,-500.0,0.00051369,31]
[313375885,1707240664907,-307.10580664,0.00051369,31]
[313375886,1707240664917,-170.87335568,0.00051369,31]
[313375887,1707240664926,-500.0,0.00051369,31]
[313375888,1707240664935,-500.0,0.00051369,31]
[313375889,1707240664944,-500.0,0.00051369,31]
[313375890,1707240664954,-1614.21,0.00051369,31]
[313375891,1707240664964,-500.0,0.00051369,31]
[313375892,1707240664973,-500.0,0.00051369,31]
[313375893,1707240664982,-500.0,0.00051369,31]
[313375894,1707240664992,-500.0,0.00051369,31]
[313375895,1707240665001,-500.0,0.00051369,31]
[313375896,1707240665010,-500.0,0.00051369,31]
[313375897,1707240665020,-500.0,0.00051369,31]
[313375898,1707240665030,-500.0,0.00051369,31]
[313375899,1707240665040,-508.33,0.00051369,31]
[313375900,1707240665050,-500.0,0.00051369,31]
[313375901,1707240665060,-500.0,0.00051369,31]
[313375902,1707240665070,-535.53,0.00051369,31]
[313375903,1707240665080,-500.0,0.00051369,31]
[313375904,1707240665090,-500.0,0.00051369,31]
[313375905,1707240665100,-575.93000645,0.00051369,31]
[313375906,1707240665110,-1000.0,0.00051369,7]
[313375907,1707240665120,-1000.0,0.00051369,7]
[313375908,1707240665130,-500.0,0.00051369,31]
[313375909,1707240665139,-500.0,0.00051369,31]
[313375910,1707240665149,-711.2,0.00051369,31]
[313375911,1707240665159,-500.0,0.00051369,31]
[313375912,1707240665169,-500.0,0.00051369,31]
[313375913,1707240665192,-500.0,0.00051369,31]
[313375914,1707240665204,-500.0,0.00051369,31]
[313375915,1707240665215,-500.0,0.00051369,31]
[313375916,1707240665225,-500.0,0.00051369,31]
[313375917,1707240665236,-1532.12,0.00051369,31]
[313375918,1707240665247,-438.40449927,0.00051369,31]
[313375919,1707240665257,-500.0,0.00051369,31]
[313375920,1707240665268,-500.0,0.00051369,31]
[313375921,1707240665278,-500.0,0.00051369,31]
[313375922,1707240665288,-486.15978154,0.00051369,31]
[313375923,1707240665298,-500.0,0.00051369,31]
[313375924,1707240665308,-1329.98,0.00051369,5]
[313375925,1707240665318,-500.0,0.00051369,31]
[313375926,1707240665328,-183.80201568,0.00051369,31]
[313375927,1707240665339,-500.0,0.00051369,31]
[313375928,1707240665349,-220.17453905,0.00051369,31]
[313375929,1707240665359,-849.58,0.00051369,31]
[313375930,1707240665369,-500.0,0.00051369,31]
[313375931,1707240665380,-570.54384386,0.00051369,31]
[313375932,1707240665390,-500.0,0.00051369,31]
[313375933,1707240665400,-500.0,0.00051369,31]
[313375934,1707240665410,-500.0,0.00051369,2]
[313375935,1707240665420,-747.05,0.00051369,30]
[313375936,1707240665430,-625.06,0.00051369,31]
[313375937,1707240665440,-500.0,0.00051369,31]
[313375938,1707240665452,-500.0,0.00051369,31]
[313375939,1707240665464,-500.0,0.00051369,31]
[313375940,1707240665473,-500.0,0.00051369,2]
[313375941,1707240665483,-177.72642759,0.00051369,31]
[313375942,1707240665493,-159.48608106,0.00051399,60]
[313375943,1707240665502,-151.47027557,0.00051399,60]
[313375944,1707240665511,-150.0,0.000514,40]
[313375945,1707240665521,-154.23080742,0.00051418,60]
[313375946,1707240665531,-411.0,0.0005147,8]
[313375947,1707240665541,-2003.9684,0.0005149,5]
[313375948,1707240665551,-200.0,0.000515,29]
[313375949,1707240665561,-2110.0,0.00051554,30]
[313375950,1707240665571,-159.72885623,0.00051585,60]
[313375951,1707240665581,-154.23080742,0.00051654,60]
[313375952,1707240665591,-221.2381084,0.00051665,2]
[313375953,1707240665601,-400.0,0.0005167,7]
[313375954,1707240665611,-864629.98428972,0.000517,9]
[313375955,1707240665621,-150.000001,0.000517,63]
[313375956,1707240665630,-221.941085,0.000517,34]
[313375957,1707240665640,-237.488961,0.000517,34]
[313375958,1707240665649,-151.0,0.000517,14]
[313375959,1707240665659,-151.0,0.000517,14]
[313375960,1707240665668,-151.0,0.000517,14]
[313375961,1707240665682,-298.526916,0.000517,14]
[313375962,1707240665692,-1982.997787,0.000517,34]
[313375963,1707240665704,-1982.997786,0.000517,34]
[313375964,1707240665715,-5000.0,0.000517,8]
[313375965,1707240665725,-416.28,0.0005173,2]
[313375966,1707240665735,-213.97209076,0.00051745,2]
[313375967,1707240665744,-157.15723358,0.0005175,120]
[313375968,1707240665755,-500.0,0.0005178,31]
[313375969,1707240665765,-500.0,0.0005178,31]
[313375970,1707240665775,-311.18653086,0.0005178,31]
[313375971,1707240665785,-500.0,0.0005178,7]
[313375972,1707240665796,-500.0,0.0005178,31]
[313375973,1707240665806,-500.0,0.0005178,2]
[313375974,1707240665820,-500.0,0.0005178,31]
[313375975,1707240665831,-593.49,0.0005178,7]
[313375976,1707240665841,-500.0,0.0005178,31]
[313375977,1707240665851,-500.0,0.0005178,31]
[313375978,1707240665861,-500.0,0.0005178,31]
[313375979,1707240665871,-500.0,0.0005178,31]
[313375980,1707240665881,-500.0,0.0005178,31]
[313375981,1707240665891,-1142.62,0.0005178,31]
[313375982,1707240665902,-500.0,0.0005178,31]
[313375983,1707240665911,-500.0,0.0005178,31]
[313375984,1707240665921,-548.45,0.0005178,31]
[313375985,1707240665931,-760.52,0.0005178,31]
[313375986,1707240665941,-395.68758671,0.0005178,31]
[313375987,1707240665952,-500.0,0.0005178,10]
[313375988,1707240665961,-850.64,0.0005178,31]
[313375989,1707240665971,-500.0,0.0005178,31]
[313375990,1707240665981,-500.0,0.0005178,31]
[313375991,1707240665992,-590.94,0.0005178,31]
[313375992,1707240666003,-500.0,0.0005178,31]
[313375993,1707240666013,-530.89358299,0.0005178,31]
[313375994,1707240666024,-759.47,0.0005178,7]
[313375995,1707240666034,-500.0,0.0005178,31]
[313375996,1707240666048,-500.0,0.0005178,31]
[313375997,1707240666058,-2245.18,0.0005178,31]
[313375998,1707240666068,-500.0,0.0005178,31]
[313375999,1707240666078,-500.0,0.0005178,7]
[313376000,1707240666089,-1000.0,0.0005178,7]
[313376001,1707240666099,-506.91455636,0.0005178,31]
[313376002,1707240666109,-500.0,0.0005178,31]
[313376003,1707240666119,-500.0,0.0005178,31]
[313376004,1707240666130,-500.0,0.0005178,31]
[313376005,1707240666140,-500.0,0.0005178,31]
[313376006,1707240666151,-646.03,0.0005178,31]
[313376007,1707240666162,-500.0,0.0005178,31]
[313376008,1707240666173,-500.0,0.0005178,31]
[313376009,1707240666183,-500.0,0.0005178,31]
[313376010,1707240666193,-190.51281503,0.0005178,31]
[313376011,1707240666205,-969.13,0.0005178,31]
[313376012,1707240666338,-979.31,0.0005178,31]
[313376013,1707240666366,-500.0,0.0005178,31]
[313376014,1707240666376,-500.0,0.0005178,31]
[313376015,1707240666391,-217.7955074,0.0005178,31]
[313376016,1707240666402,-500.0,0.0005178,31]
[313376017,1707240666411,-500.0,0.0005178,31]
[313376018,1707240666421,-3069.86,0.0005178,5]
[313376019,1707240666431,-330.09984808,0.0005178,31]
[313376020,1707240666441,-500.0,0.0005178,31]
[313376021,1707240666453,-570.12732039,0.0005178,31]
[313376022,1707240666463,-500.0,0.0005178,31]
[313376023,1707240666472,-500.0,0.0005178,31]
[313376024,1707240666482,-500.0,0.0005178,31]
[313376025,1707240666492,-500.0,0.0005178,31]
[313376026,1707240666502,-500.0,0.0005178,31]
[313376027,1707240666511,-305.27841197,0.0005178,31]
[313376028,1707240666521,-663.08,0.0005178,31]
[313376029,1707240666531,-500.0,0.0005178,31]
[313376030,1707240666541,-500.0,0.0005178,31]
[313376031,1707240666551,-500.0,0.0005178,31]
[313376032,1707240666561,-500.0,0.0005178,31]
[313376033,1707240666570,-500.0,0.0005178,31]
[313376034,1707240666581,-1614.21,0.0005178,31]
[313376035,1707240666591,-500.0,0.0005178,31]
[313376036,1707240666601,-500.0,0.0005178,31]